[Event "Early-Titled-Tuesday-Blitz-February-20-2024"]
[Site "Chess.com"]
[Date "2024.02.20"]
[Round "8"]
[White "BashirliSaadat"]
[Black "Zallio"]
[Result "1-0"]
[WhiteElo "2354"]
[BlackElo "2157"]
[TimeControl "180+1"]
[EndTime "9:30:16 PST"]
[Termination "BashirliSaadat won by resignation"]

1. e4 {[%clk 0:03:00.9]} 1... e6 {[%clk 0:02:54.2]} 2. d4 {[%clk 0:03:00.3]}
2... d5 {[%clk 0:02:54.6]} 3. Nc3 {[%clk 0:03:00.8]} 3... Bb4 {[%clk 0:02:50.6]}
4. Ne2 {[%clk 0:03:01]} 4... dxe4 {[%clk 0:02:49.8]} 5. a3 {[%clk 0:02:59.7]}
5... Bxc3+ {[%clk 0:02:49.9]} 6. Nxc3 {[%clk 0:02:59.2]} 6... Nf6 {[%clk
0:02:49.9]} 7. Bg5 {[%clk 0:02:55.5]} 7... h6 {[%clk 0:02:44.6]} 8. Bxf6 {[%clk
0:02:54.8]} 8... Qxf6 {[%clk 0:02:44.5]} 9. Nxe4 {[%clk 0:02:55.6]} 9... Qg6
{[%clk 0:02:44.7]} 10. Nc3 {[%clk 0:02:51.2]} 10... O-O {[%clk 0:02:40.1]} 11.
Qd2 {[%clk 0:02:50.5]} 11... Bd7 {[%clk 0:02:28.1]} 12. O-O-O {[%clk 0:02:47]}
12... Rd8 {[%clk 0:02:24.5]} 13. Bd3 {[%clk 0:02:46.5]} 13... Qg5 {[%clk
0:02:18.7]} 14. f4 {[%clk 0:02:42.8]} 14... Qa5 {[%clk 0:02:16.9]} 15. Qf2
{[%clk 0:02:29.6]} 15... Nc6 {[%clk 0:02:12.6]} 16. Be4 {[%clk 0:02:18.3]} 16...
b5 {[%clk 0:02:04.4]} 17. Qf3 {[%clk 0:02:00]} 17... Qb6 {[%clk 0:02:03.6]} 18.
d5 {[%clk 0:01:56.9]} 18... Nd4 {[%clk 0:01:50.4]} 19. Qd3 {[%clk 0:01:53.1]}
19... c5 {[%clk 0:01:50.2]} 20. dxe6 {[%clk 0:01:39.2]} 20... Bxe6 {[%clk
0:01:45.6]} 21. Bxa8 {[%clk 0:01:38.5]} 21... Rxa8 {[%clk 0:01:26.2]} 22. Qe4
{[%clk 0:01:36.5]} 22... Rb8 {[%clk 0:01:19.4]} 23. Qe5 {[%clk 0:01:33.2]} 23...
b4 {[%clk 0:01:12.3]} 24. Na4 {[%clk 0:01:30.3]} 24... Qb5 {[%clk 0:01:06]} 25.
axb4 {[%clk 0:01:13.4]} 25... Qxb4 {[%clk 0:00:40.2]} 26. Rd3 {[%clk 0:00:47.2]}
26... Nc6 {[%clk 0:00:30.8]} 27. Qc7 {[%clk 0:00:41.3]} 27... Qxa4 {[%clk
0:00:29.7]} 28. Ra3 {[%clk 0:00:34.9]} 28... Qe4 {[%clk 0:00:22.7]} 29. Rd1
{[%clk 0:00:30.5]} 29... Rc8 {[%clk 0:00:22.7]} 30. Qb7 {[%clk 0:00:22.1]} 30...
Nb4 {[%clk 0:00:21.3]} 31. Qxe4 {[%clk 0:00:20.3]} 31... Re8 {[%clk 0:00:16.7]}
32. Qf3 {[%clk 0:00:17.2]} 32... Rd8 {[%clk 0:00:16.8]} 33. Rxd8+ {[%clk
0:00:16.4]} 33... Kh7 {[%clk 0:00:17.2]} 34. Qe4+ {[%clk 0:00:16.7]} 1-0

[Event "Early-Titled-Tuesday-Blitz-February-20-2024"]
[Site "Chess.com"]
[Date "2024.02.20"]
[Round "8"]
[White "Alexchess1984"]
[Black "Rakhmanov_Aleksandr"]
[Result "0-1"]
[WhiteElo "2657"]
[BlackElo "2869"]
[TimeControl "180+1"]
[EndTime "9:30:21 PST"]
[Termination "Rakhmanov_Aleksandr won by checkmate"]

1. e4 {[%clk 0:03:00.9]} 1... c5 {[%clk 0:02:58]} 2. c3 {[%clk 0:03:00.2]} 2...
e6 {[%clk 0:02:47.6]} 3. d4 {[%clk 0:02:59.7]} 3... d5 {[%clk 0:02:46.4]} 4. e5
{[%clk 0:02:57.5]} 4... Nc6 {[%clk 0:02:44.5]} 5. Nf3 {[%clk 0:02:58.1]} 5...
Qb6 {[%clk 0:02:44.7]} 6. Be2 {[%clk 0:02:57.8]} 6... cxd4 {[%clk 0:02:44.3]} 7.
cxd4 {[%clk 0:02:57.2]} 7... Nh6 {[%clk 0:02:44.9]} 8. Bxh6 {[%clk 0:02:56.6]}
8... Qxb2 {[%clk 0:02:27.8]} 9. Nbd2 {[%clk 0:02:55.6]} 9... gxh6 {[%clk
0:02:27.5]} 10. O-O {[%clk 0:02:55.4]} 10... Bg7 {[%clk 0:02:25.2]} 11. Re1
{[%clk 0:02:47.4]} 11... O-O {[%clk 0:02:19.5]} 12. Nf1 {[%clk 0:02:46.5]} 12...
Bd7 {[%clk 0:02:05.2]} 13. Ng3 {[%clk 0:02:37.2]} 13... f6 {[%clk 0:01:50]} 14.
Rb1 {[%clk 0:02:24.8]} 14... Qxa2 {[%clk 0:01:42.4]} 15. exf6 {[%clk 0:02:16.4]}
15... Bxf6 {[%clk 0:01:41.9]} 16. Rxb7 {[%clk 0:02:09.6]} 16... Rf7 {[%clk
0:01:38.6]} 17. Nh5 {[%clk 0:02:03.8]} 17... Bh8 {[%clk 0:01:31.1]} 18. Bd3
{[%clk 0:01:23.1]} 18... Nxd4 {[%clk 0:01:19.8]} 19. Nxd4 {[%clk 0:01:18.1]}
19... Qxf2+ {[%clk 0:01:13.9]} 20. Kh1 {[%clk 0:01:17.4]} 20... Qxd4 {[%clk
0:01:10.1]} 21. Qb1 {[%clk 0:00:55.8]} 21... Qg4 {[%clk 0:00:18.9]} 22. Be2
{[%clk 0:00:21.9]} 22... Qh4 {[%clk 0:00:17.9]} 23. Rb8+ {[%clk 0:00:19.4]}
23... Rxb8 {[%clk 0:00:17.5]} 24. Qxb8+ {[%clk 0:00:19.2]} 24... Rf8 {[%clk
0:00:18.2]} 25. Qb1 {[%clk 0:00:18]} 25... Be5 {[%clk 0:00:14.4]} 26. h3 {[%clk
0:00:13.8]} 26... Be8 {[%clk 0:00:09.2]} 27. g3 {[%clk 0:00:05.5]} 27... Qxh3+
{[%clk 0:00:08.1]} 28. Kg1 {[%clk 0:00:05.9]} 28... Bd4# {[%clk 0:00:08.3]} 0-1

[Event "Early-Titled-Tuesday-Blitz-February-20-2024"]
[Site "Chess.com"]
[Date "2024.02.20"]
[Round "8"]
[White "Cubitas"]
[Black "HeroWilczek"]
[Result "1-0"]
[WhiteElo "2638"]
[BlackElo "2464"]
[TimeControl "180+1"]
[EndTime "9:30:21 PST"]
[Termination "Cubitas won on time"]

1. e4 {[%clk 0:02:55.3]} 1... c6 {[%clk 0:02:59.2]} 2. Nf3 {[%clk 0:02:48.1]}
2... d5 {[%clk 0:02:59.2]} 3. exd5 {[%clk 0:02:49]} 3... cxd5 {[%clk 0:02:59.9]}
4. Ne5 {[%clk 0:02:49.6]} 4... Nc6 {[%clk 0:02:59]} 5. d4 {[%clk 0:02:46.5]}
5... Nxe5 {[%clk 0:02:55.2]} 6. dxe5 {[%clk 0:02:47.4]} 6... e6 {[%clk
0:02:53.7]} 7. Bd3 {[%clk 0:02:46.7]} 7... Bc5 {[%clk 0:02:53.7]} 8. Qg4 {[%clk
0:02:44.7]} 8... g6 {[%clk 0:02:43.9]} 9. O-O {[%clk 0:02:42.4]} 9... h5 {[%clk
0:02:43.9]} 10. Qf4 {[%clk 0:02:40.8]} 10... Nh6 {[%clk 0:02:38.8]} 11. Nd2
{[%clk 0:02:32.5]} 11... Nf5 {[%clk 0:02:34.4]} 12. Nf3 {[%clk 0:02:31.5]} 12...
Bd7 {[%clk 0:02:27.2]} 13. Rd1 {[%clk 0:02:14.4]} 13... Qb6 {[%clk 0:02:22.5]}
14. Ng5 {[%clk 0:02:13.1]} 14... Be7 {[%clk 0:02:18.1]} 15. a4 {[%clk
0:01:45.7]} 15... h4 {[%clk 0:02:01.5]} 16. h3 {[%clk 0:01:44.5]} 16... Rh5
{[%clk 0:01:57.7]} 17. Nf3 {[%clk 0:01:42.8]} 17... Bc5 {[%clk 0:01:56.5]} 18.
a5 {[%clk 0:01:41.5]} 18... Bxf2+ {[%clk 0:01:30.9]} 19. Kf1 {[%clk 0:01:36.2]}
19... Ne3+ {[%clk 0:01:12.1]} 20. Ke2 {[%clk 0:01:35.5]} 20... Nxg2 {[%clk
0:01:00.4]} 21. axb6 {[%clk 0:01:31.8]} 21... Nxf4+ {[%clk 0:01:00.8]} 22. Bxf4
{[%clk 0:01:29.6]} 22... Bxb6 {[%clk 0:01:01.7]} 23. Bg5 {[%clk 0:01:25.8]}
23... Bc6 {[%clk 0:00:51.5]} 24. Bf6 {[%clk 0:01:19]} 24... Bd8 {[%clk
0:00:43.1]} 25. Nd4 {[%clk 0:01:18]} 25... Bxf6 {[%clk 0:00:34.6]} 26. exf6
{[%clk 0:01:18.9]} 26... Kd7 {[%clk 0:00:30.2]} 27. c4 {[%clk 0:01:11]} 27... a6
{[%clk 0:00:23.9]} 28. b4 {[%clk 0:01:10.2]} 28... e5 {[%clk 0:00:21.6]} 29.
cxd5 {[%clk 0:01:03.7]} 29... Bxd5 {[%clk 0:00:20]} 30. Nc2 {[%clk 0:00:54.6]}
30... Ke6 {[%clk 0:00:19.8]} 31. Ne3 {[%clk 0:00:54.3]} 31... Bc6 {[%clk
0:00:16.8]} 32. Bc4+ {[%clk 0:00:54]} 32... Kxf6 {[%clk 0:00:15.9]} 33. Rf1+
{[%clk 0:00:54.6]} 33... Kg7 {[%clk 0:00:15.8]} 34. Rxf7+ {[%clk 0:00:54.2]}
34... Kh8 {[%clk 0:00:15.6]} 35. Rg1 {[%clk 0:00:52.3]} 35... Be4 {[%clk
0:00:14.2]} 36. Rd1 {[%clk 0:00:49.1]} 36... Bc6 {[%clk 0:00:11.8]} 37. Rd6
{[%clk 0:00:48.8]} 37... Rh7 {[%clk 0:00:10.5]} 38. Rxg6 {[%clk 0:00:47.7]}
38... Rxf7 {[%clk 0:00:10.7]} 39. Bxf7 {[%clk 0:00:47.8]} 39... a5 {[%clk
0:00:11.4]} 40. Nf5 {[%clk 0:00:43.2]} 40... Bb5+ {[%clk 0:00:04.1]} 41. Ke1
{[%clk 0:00:42.9]} 41... Ra6 {[%clk 0:00:04.8]} 42. Be6 {[%clk 0:00:39.8]} 1-0

[Event "Early-Titled-Tuesday-Blitz-February-20-2024"]
[Site "Chess.com"]
[Date "2024.02.20"]
[Round "8"]
[White "TioCridineno"]
[Black "Yushko_Olga"]
[Result "1-0"]
[WhiteElo "2389"]
[BlackElo "2193"]
[TimeControl "180+1"]
[EndTime "9:30:22 PST"]
[Termination "TioCridineno won by checkmate"]

1. e4 {[%clk 0:03:00.9]} 1... e6 {[%clk 0:02:59.7]} 2. d4 {[%clk 0:03:00.8]}
2... d5 {[%clk 0:03:00.5]} 3. Nc3 {[%clk 0:03:01.4]} 3... Nf6 {[%clk 0:03:00.4]}
4. e5 {[%clk 0:03:01.4]} 4... Nfd7 {[%clk 0:03:00.8]} 5. Nce2 {[%clk 0:03:02.1]}
5... c5 {[%clk 0:03:01.6]} 6. c3 {[%clk 0:03:02.6]} 6... Nc6 {[%clk 0:03:02.4]}
7. Nf3 {[%clk 0:03:03.2]} 7... Qb6 {[%clk 0:03:02.7]} 8. a3 {[%clk 0:03:03.2]}
8... cxd4 {[%clk 0:03:02.6]} 9. cxd4 {[%clk 0:03:03.4]} 9... Be7 {[%clk
0:03:00.6]} 10. h4 {[%clk 0:03:03.3]} 10... f6 {[%clk 0:03:01]} 11. Nf4 {[%clk
0:03:03.3]} 11... Na5 {[%clk 0:02:55]} 12. Bd3 {[%clk 0:02:56.4]} 12... fxe5
{[%clk 0:02:50.3]} 13. dxe5 {[%clk 0:02:56]} 13... Nc5 {[%clk 0:02:31.1]} 14.
Ng5 {[%clk 0:02:51.6]} 14... Nxd3+ {[%clk 0:02:27.4]} 15. Qxd3 {[%clk
0:02:51.4]} 15... Bd7 {[%clk 0:02:19.7]} 16. b4 {[%clk 0:02:41.7]} 16... Nc4
{[%clk 0:02:15.6]} 17. Qe2 {[%clk 0:02:35.5]} 17... h6 {[%clk 0:02:07.3]} 18.
Ng6 {[%clk 0:02:33.2]} 18... Rg8 {[%clk 0:01:54.2]} 19. Nf3 {[%clk 0:02:25.3]}
19... Bb5 {[%clk 0:01:47.5]} 20. Qc2 {[%clk 0:02:24.1]} 20... Qc7 {[%clk
0:01:39.7]} 21. Bf4 {[%clk 0:02:21.3]} 21... O-O-O {[%clk 0:01:36.9]} 22. Rc1
{[%clk 0:02:14.1]} 22... Kb8 {[%clk 0:01:35.7]} 23. O-O {[%clk 0:02:13.7]} 23...
Ka8 {[%clk 0:01:32.2]} 24. a4 {[%clk 0:02:11.7]} 24... Be8 {[%clk 0:01:29.2]}
25. b5 {[%clk 0:02:10.3]} 25... Qa5 {[%clk 0:01:25.2]} 26. Nxe7 {[%clk
0:02:07.6]} 26... Rf8 {[%clk 0:01:22.9]} 27. Bg3 {[%clk 0:02:07.2]} 27... a6
{[%clk 0:01:06.6]} 28. bxa6 {[%clk 0:02:06.4]} 28... bxa6 {[%clk 0:01:05.1]} 29.
Ng6 {[%clk 0:02:03.1]} 29... Rg8 {[%clk 0:00:56.7]} 30. Nf4 {[%clk 0:02:02.5]}
30... Bxa4 {[%clk 0:00:54.9]} 31. Qa2 {[%clk 0:01:58.4]} 31... Rge8 {[%clk
0:00:53.2]} 32. Ra1 {[%clk 0:01:53.5]} 32... Nb6 {[%clk 0:00:47.8]} 33. Nd4
{[%clk 0:01:52.3]} 33... Qb4 {[%clk 0:00:36.5]} 34. Nfe2 {[%clk 0:01:50.3]}
34... Rb8 {[%clk 0:00:33.5]} 35. Rab1 {[%clk 0:01:49.4]} 35... Qa5 {[%clk
0:00:29.9]} 36. Rfc1 {[%clk 0:01:46.7]} 36... Nc4 {[%clk 0:00:27.3]} 37. Bf4
{[%clk 0:01:42.7]} 37... g5 {[%clk 0:00:16.2]} 38. hxg5 {[%clk 0:01:40.1]} 38...
hxg5 {[%clk 0:00:17.1]} 39. Be3 {[%clk 0:01:38]} 39... g4 {[%clk 0:00:15.8]} 40.
Ng3 {[%clk 0:01:29]} 40... Rh8 {[%clk 0:00:14.3]} 41. Nxe6 {[%clk 0:01:23.1]}
41... Nxe3 {[%clk 0:00:08.5]} 42. fxe3 {[%clk 0:01:21.6]} 42... Rh6 {[%clk
0:00:03.4]} 43. Nf4 {[%clk 0:01:19.4]} 43... Rbh8 {[%clk 0:00:02.5]} 44. Kf2
{[%clk 0:01:19.1]} 44... Rf8 {[%clk 0:00:01.3]} 45. Ne2 {[%clk 0:01:05.4]} 45...
Rh7 {[%clk 0:00:01.2]} 46. Kg3 {[%clk 0:01:04.4]} 46... Rh6 {[%clk 0:00:01.3]}
47. Qb2 {[%clk 0:01:03.1]} 47... Rfh8 {[%clk 0:00:01.4]} 48. Qb7# {[%clk
0:01:02.6]} 1-0

[Event "Early-Titled-Tuesday-Blitz-February-20-2024"]
[Site "Chess.com"]
[Date "2024.02.20"]
[Round "8"]
[White "Licancabur"]
[Black "mortngabriel"]
[Result "1-0"]
[WhiteElo "2422"]
[BlackElo "2513"]
[TimeControl "180+1"]
[EndTime "9:30:24 PST"]
[Termination "Licancabur won by resignation"]

1. d4 {[%clk 0:02:59.2]} 1... Nf6 {[%clk 0:02:59.9]} 2. Bg5 {[%clk 0:02:58.5]}
2... d5 {[%clk 0:02:59.6]} 3. e3 {[%clk 0:02:57.7]} 3... c5 {[%clk 0:02:59]} 4.
Bxf6 {[%clk 0:02:53.3]} 4... gxf6 {[%clk 0:02:57.9]} 5. dxc5 {[%clk 0:02:46.1]}
5... Nc6 {[%clk 0:02:49.6]} 6. Nf3 {[%clk 0:02:44.9]} 6... e5 {[%clk 0:02:46.9]}
7. Nc3 {[%clk 0:02:34.3]} 7... Be6 {[%clk 0:02:46]} 8. Qd2 {[%clk 0:02:26.8]}
8... Bxc5 {[%clk 0:02:45.2]} 9. O-O-O {[%clk 0:02:25.8]} 9... Ne7 {[%clk
0:02:23]} 10. Bb5+ {[%clk 0:02:25.1]} 10... Kf8 {[%clk 0:02:23.2]} 11. e4 {[%clk
0:02:18.9]} 11... d4 {[%clk 0:02:20.7]} 12. Qh6+ {[%clk 0:02:18.1]} 12... Kg8
{[%clk 0:02:10.1]} 13. Qxf6 {[%clk 0:02:13.6]} 13... Ng6 {[%clk 0:02:09.9]} 14.
Qxd8+ {[%clk 0:01:41.7]} 14... Rxd8 {[%clk 0:02:10.8]} 15. h4 {[%clk 0:01:20.3]}
15... Kg7 {[%clk 0:02:03.4]} 16. Ne2 {[%clk 0:01:14.8]} 16... f6 {[%clk
0:01:56.1]} 17. h5 {[%clk 0:01:08.4]} 17... Ne7 {[%clk 0:01:56.1]} 18. Kb1
{[%clk 0:01:02.2]} 18... Kf7 {[%clk 0:01:11.8]} 19. Nh4 {[%clk 0:00:56.6]} 19...
Rhg8 {[%clk 0:01:07.1]} 20. g3 {[%clk 0:00:55.4]} 20... Bg4 {[%clk 0:01:05.2]}
21. f3 {[%clk 0:00:44.7]} 21... Be6 {[%clk 0:01:03.6]} 22. g4 {[%clk 0:00:40.5]}
22... a6 {[%clk 0:00:44.9]} 23. Ba4 {[%clk 0:00:40.2]} 23... Bc4 {[%clk
0:00:38.7]} 24. Bb3 {[%clk 0:00:40]} 24... b5 {[%clk 0:00:37.9]} 25. Nc1 {[%clk
0:00:36.4]} 25... Ke6 {[%clk 0:00:27.7]} 26. Nd3 {[%clk 0:00:34.9]} 26... Bd6
{[%clk 0:00:27.6]} 27. Rhe1 {[%clk 0:00:21.5]} 27... Rc8 {[%clk 0:00:25.6]} 28.
Nf5 {[%clk 0:00:21.4]} 28... Nxf5 {[%clk 0:00:23.6]} 29. exf5+ {[%clk
0:00:21.5]} 29... Kd5 {[%clk 0:00:23.5]} 30. Nf2 {[%clk 0:00:19.2]} 30... a5
{[%clk 0:00:19.7]} 31. Ne4 {[%clk 0:00:18.4]} 31... Be7 {[%clk 0:00:20.3]} 32.
c3 {[%clk 0:00:15.8]} 32... a4 {[%clk 0:00:19.6]} 33. Bxc4+ {[%clk 0:00:15.4]}
33... bxc4 {[%clk 0:00:19.5]} 34. cxd4 {[%clk 0:00:15.4]} 34... exd4 {[%clk
0:00:19.7]} 35. Nc3+ {[%clk 0:00:15.6]} 35... Kd6 {[%clk 0:00:15]} 36. Rxd4+
{[%clk 0:00:15]} 1-0

[Event "Early-Titled-Tuesday-Blitz-February-20-2024"]
[Site "Chess.com"]
[Date "2024.02.20"]
[Round "8"]
[White "Sanyura"]
[Black "Der_Balak_3Halak"]
[Result "0-1"]
[WhiteElo "2598"]
[BlackElo "2456"]
[TimeControl "180+1"]
[EndTime "9:30:25 PST"]
[Termination "Der_Balak_3Halak won by resignation"]

1. e4 {[%clk 0:01:31.7]} 1... c5 {[%clk 0:02:58.7]} 2. Nf3 {[%clk 0:01:31]} 2...
g6 {[%clk 0:02:58]} 3. d4 {[%clk 0:01:29.4]} 3... cxd4 {[%clk 0:02:58.9]} 4.
Nxd4 {[%clk 0:01:30]} 4... Nf6 {[%clk 0:02:57.4]} 5. e5 {[%clk 0:01:23.5]} 5...
Qa5+ {[%clk 0:02:57.1]} 6. Nc3 {[%clk 0:01:20.5]} 6... Qxe5+ {[%clk 0:02:56.9]}
7. Be2 {[%clk 0:01:21.1]} 7... Nc6 {[%clk 0:02:56.4]} 8. Be3 {[%clk 0:01:12.7]}
8... Bg7 {[%clk 0:02:54.5]} 9. O-O {[%clk 0:01:12.2]} 9... O-O {[%clk
0:02:53.1]} 10. Qd2 {[%clk 0:01:08.2]} 10... Ne4 {[%clk 0:02:39.4]} 11. Nxe4
{[%clk 0:01:05.2]} 11... Nxd4 {[%clk 0:02:36.7]} 12. Bd3 {[%clk 0:01:03.2]}
12... Nf5 {[%clk 0:02:29.1]} 13. Bf4 {[%clk 0:01:00.1]} 13... Qxb2 {[%clk
0:02:19.7]} 14. a4 {[%clk 0:00:49.3]} 14... d5 {[%clk 0:02:11.8]} 15. Nc5 {[%clk
0:00:30.3]} 15... Qf6 {[%clk 0:01:58.1]} 16. Rfe1 {[%clk 0:00:26.8]} 16... e6
{[%clk 0:01:49.1]} 17. Rab1 {[%clk 0:00:19.9]} 17... b6 {[%clk 0:01:48.9]} 18.
Be5 {[%clk 0:00:16.7]} 18... Qxe5 {[%clk 0:01:35]} 19. Rxe5 {[%clk 0:00:16.1]}
19... Bxe5 {[%clk 0:01:35.9]} 20. Nb3 {[%clk 0:00:16]} 20... Nd6 {[%clk
0:01:31.8]} 21. f4 {[%clk 0:00:14]} 21... Bg7 {[%clk 0:01:31.3]} 22. Rf1 {[%clk
0:00:13.5]} 22... Bb7 {[%clk 0:01:30.6]} 23. Qf2 {[%clk 0:00:13.2]} 23... Rac8
{[%clk 0:01:30.4]} 24. h4 {[%clk 0:00:10.6]} 24... Ne4 {[%clk 0:01:30.6]} 25.
Qe1 {[%clk 0:00:08.2]} 25... Bc3 {[%clk 0:01:29.1]} 26. Qd1 {[%clk 0:00:07.6]}
26... Rcd8 {[%clk 0:01:16.5]} 27. h5 {[%clk 0:00:06.9]} 27... Ng3 {[%clk
0:01:16.8]} 28. hxg6 {[%clk 0:00:03.1]} 28... fxg6 {[%clk 0:01:14.7]} 29. Rf3
{[%clk 0:00:02.8]} 29... Nf5 {[%clk 0:01:14.8]} 30. Rf1 {[%clk 0:00:02.2]} 30...
Ne3 {[%clk 0:01:13.3]} 31. Qe2 {[%clk 0:00:02.7]} 31... Nxf1 {[%clk 0:01:13.6]}
32. Qxe6+ {[%clk 0:00:03.2]} 32... Rf7 {[%clk 0:01:14.1]} 33. Kxf1 {[%clk
0:00:03.5]} 33... d4 {[%clk 0:01:13]} 34. g3 {[%clk 0:00:03.7]} 34... Bd5 {[%clk
0:01:13.2]} 35. Qe5 {[%clk 0:00:02.8]} 35... Bxb3 {[%clk 0:00:56.3]} 36. cxb3
{[%clk 0:00:03.7]} 36... Rdd7 {[%clk 0:00:47.8]} 37. Bc4 {[%clk 0:00:04]} 37...
d3 {[%clk 0:00:41.3]} 38. Qxc3 {[%clk 0:00:03.5]} 38... d2 {[%clk 0:00:41.9]}
39. Be2 {[%clk 0:00:02.7]} 39... Rfe7 {[%clk 0:00:42.2]} 40. Bd1 {[%clk
0:00:02.6]} 40... Re1+ {[%clk 0:00:41.7]} 41. Kf2 {[%clk 0:00:03.1]} 41... Rxd1
{[%clk 0:00:42.6]} 42. Qc4+ {[%clk 0:00:03.4]} 42... Kg7 {[%clk 0:00:38.6]} 43.
Qc3+ {[%clk 0:00:03.6]} 43... Kh6 {[%clk 0:00:38.8]} 44. g4 {[%clk 0:00:02]}
44... Rf1+ {[%clk 0:00:38.2]} 0-1

[Event "Early-Titled-Tuesday-Blitz-February-20-2024"]
[Site "Chess.com"]
[Date "2024.02.20"]
[Round "8"]
[White "Elnaz_Kaliakhmet"]
[Black "manitodeplomo"]
[Result "1/2-1/2"]
[WhiteElo "2457"]
[BlackElo "2627"]
[TimeControl "180+1"]
[EndTime "9:30:27 PST"]
[Termination "Game drawn by repetition"]

1. d4 {[%clk 0:02:58.2]} 1... Nf6 {[%clk 0:02:56.1]} 2. c4 {[%clk 0:02:57.8]}
2... e6 {[%clk 0:02:56.3]} 3. Nf3 {[%clk 0:02:57.5]} 3... b6 {[%clk 0:02:55.5]}
4. g3 {[%clk 0:02:57.1]} 4... Bb7 {[%clk 0:02:55.2]} 5. Bg2 {[%clk 0:02:57.7]}
5... d5 {[%clk 0:02:55.7]} 6. O-O {[%clk 0:02:51.1]} 6... dxc4 {[%clk
0:02:54.2]} 7. Qa4+ {[%clk 0:02:48.7]} 7... Nbd7 {[%clk 0:02:53]} 8. Qxc4 {[%clk
0:02:47.1]} 8... a6 {[%clk 0:02:53.1]} 9. Nc3 {[%clk 0:02:44.9]} 9... b5 {[%clk
0:02:52.3]} 10. Qb3 {[%clk 0:02:45.5]} 10... c5 {[%clk 0:02:52.6]} 11. Rd1
{[%clk 0:02:39.7]} 11... Rc8 {[%clk 0:02:40.5]} 12. Bg5 {[%clk 0:02:35]} 12...
Be7 {[%clk 0:02:26.4]} 13. dxc5 {[%clk 0:02:26.3]} 13... Rxc5 {[%clk 0:02:25.1]}
14. Be3 {[%clk 0:02:22.3]} 14... Rc8 {[%clk 0:02:17.5]} 15. a4 {[%clk
0:02:12.2]} 15... b4 {[%clk 0:02:16.5]} 16. Na2 {[%clk 0:02:12.2]} 16... Bd5
{[%clk 0:02:11.1]} 17. Qd3 {[%clk 0:02:10.6]} 17... a5 {[%clk 0:02:07.9]} 18.
Nh4 {[%clk 0:01:45.6]} 18... Ne5 {[%clk 0:01:58.7]} 19. Qb5+ {[%clk 0:01:44.1]}
19... Qd7 {[%clk 0:01:55]} 20. Bxd5 {[%clk 0:01:42.2]} 20... Nxd5 {[%clk
0:01:54.3]} 21. Qxa5 {[%clk 0:01:37.3]} 21... Nc4 {[%clk 0:01:44.8]} 22. Qa6
{[%clk 0:01:16.7]} 22... O-O {[%clk 0:01:20.6]} 23. Bd4 {[%clk 0:01:09.1]} 23...
Bxh4 {[%clk 0:01:17.7]} 24. gxh4 {[%clk 0:01:09.4]} 24... e5 {[%clk 0:01:17.6]}
25. b3 {[%clk 0:00:30.4]} 25... Rc6 {[%clk 0:01:08.1]} 26. Qb5 {[%clk
0:00:26.3]} 26... Qg4+ {[%clk 0:01:03]} 27. Kh1 {[%clk 0:00:25]} 27... Qe4+
{[%clk 0:00:46]} 28. f3 {[%clk 0:00:16]} 28... Qxe2 {[%clk 0:00:45.2]} 29. Qxd5
{[%clk 0:00:14.2]} 29... Rg6 {[%clk 0:00:42.4]} 30. Rg1 {[%clk 0:00:12.3]} 30...
exd4 {[%clk 0:00:32.2]} 31. Rxg6 {[%clk 0:00:11.3]} 31... hxg6 {[%clk 0:00:31]}
32. Qxc4 {[%clk 0:00:11.6]} 32... Qxf3+ {[%clk 0:00:29.6]} 33. Kg1 {[%clk
0:00:12.2]} 33... Qg4+ {[%clk 0:00:23]} 34. Kf2 {[%clk 0:00:12.2]} 34... Qf4+
{[%clk 0:00:23]} 35. Kg2 {[%clk 0:00:12.4]} 35... Qg4+ {[%clk 0:00:23]} 36. Kf1
{[%clk 0:00:12.5]} 36... Qf3+ {[%clk 0:00:22.6]} 37. Kg1 {[%clk 0:00:12.4]}
37... Qg4+ {[%clk 0:00:22.3]} 38. Kf2 {[%clk 0:00:12.4]} 38... Qf4+ {[%clk
0:00:22.2]} 39. Kg2 {[%clk 0:00:10.6]} 39... Qg4+ {[%clk 0:00:22]} 40. Kf2
{[%clk 0:00:10]} 1/2-1/2

[Event "Early-Titled-Tuesday-Blitz-February-20-2024"]
[Site "Chess.com"]
[Date "2024.02.20"]
[Round "8"]
[White "shailendrabajpai"]
[Black "noblerone"]
[Result "0-1"]
[WhiteElo "2409"]
[BlackElo "2533"]
[TimeControl "180+1"]
[EndTime "9:30:27 PST"]
[Termination "noblerone won on time"]

1. e4 {[%clk 0:03:00.9]} 1... c5 {[%clk 0:02:55.9]} 2. Nc3 {[%clk 0:03:00.1]}
2... Nc6 {[%clk 0:02:44.6]} 3. g3 {[%clk 0:03:00.3]} 3... e6 {[%clk 0:02:42.3]}
4. Bg2 {[%clk 0:03:00.4]} 4... Nf6 {[%clk 0:02:42.3]} 5. Nge2 {[%clk 0:02:58.4]}
5... Be7 {[%clk 0:02:24.8]} 6. O-O {[%clk 0:02:47]} 6... O-O {[%clk 0:02:24.1]}
7. d4 {[%clk 0:02:41.2]} 7... cxd4 {[%clk 0:02:25]} 8. Nxd4 {[%clk 0:02:41.9]}
8... a6 {[%clk 0:02:18.3]} 9. Be3 {[%clk 0:02:34.3]} 9... Ne5 {[%clk 0:02:13.3]}
10. h3 {[%clk 0:02:22.7]} 10... Nc4 {[%clk 0:02:06.2]} 11. Bc1 {[%clk
0:02:21.6]} 11... d6 {[%clk 0:02:06.1]} 12. b3 {[%clk 0:02:20.8]} 12... Ne5
{[%clk 0:02:06]} 13. a4 {[%clk 0:02:15.7]} 13... Qc7 {[%clk 0:02:04.1]} 14. Bb2
{[%clk 0:02:14.1]} 14... Rb8 {[%clk 0:01:56.2]} 15. a5 {[%clk 0:02:13.6]} 15...
Bd7 {[%clk 0:01:51.3]} 16. Kh2 {[%clk 0:02:04]} 16... Rfc8 {[%clk 0:01:47.2]}
17. f4 {[%clk 0:01:57.8]} 17... Ng6 {[%clk 0:01:46.2]} 18. f5 {[%clk 0:01:50.5]}
18... Ne5 {[%clk 0:01:39.8]} 19. fxe6 {[%clk 0:01:48.4]} 19... fxe6 {[%clk
0:01:39.5]} 20. Na4 {[%clk 0:01:17.1]} 20... Nc6 {[%clk 0:01:20.8]} 21. Nb6
{[%clk 0:01:09.7]} 21... Rf8 {[%clk 0:01:07.5]} 22. Nxd7 {[%clk 0:00:56.9]}
22... Qxd7 {[%clk 0:01:08.4]} 23. Nxc6 {[%clk 0:00:55.8]} 23... bxc6 {[%clk
0:01:05.6]} 24. e5 {[%clk 0:00:47.3]} 24... Nd5 {[%clk 0:01:02.6]} 25. Rxf8+
{[%clk 0:00:29.8]} 25... Rxf8 {[%clk 0:01:01.9]} 26. c4 {[%clk 0:00:14.4]} 26...
Ne3 {[%clk 0:00:59.5]} 27. Qd4 {[%clk 0:00:13.7]} 27... Nxg2 {[%clk 0:00:57.1]}
28. Kxg2 {[%clk 0:00:11.2]} 28... d5 {[%clk 0:00:54.1]} 29. Rf1 {[%clk
0:00:08.6]} 29... Rxf1 {[%clk 0:00:50.4]} 30. Kxf1 {[%clk 0:00:09.5]} 30... Bd8
{[%clk 0:00:48.1]} 31. Bc3 {[%clk 0:00:06.2]} 31... h6 {[%clk 0:00:38.9]} 32.
Kg2 {[%clk 0:00:06]} 32... Qb7 {[%clk 0:00:36.6]} 33. b4 {[%clk 0:00:04.7]}
33... Qf7 {[%clk 0:00:35.3]} 34. cxd5 {[%clk 0:00:03.6]} 34... cxd5 {[%clk
0:00:34.7]} 35. Qd3 {[%clk 0:00:03.7]} 35... Qb7 {[%clk 0:00:28.5]} 36. Qd4
{[%clk 0:00:04.1]} 36... Be7 {[%clk 0:00:26.3]} 37. Qd3 {[%clk 0:00:03.8]} 37...
d4+ {[%clk 0:00:24.9]} 0-1